[Event "Early-Titled-Tuesday-Blitz-October-24-2023"]
[Site "Chess.com"]
[Date "2023.10.24"]
[Round "9"]
[White "twitchTriniCupid"]
[Black "ama18"]
[Result "0-1"]
[WhiteElo "2339"]
[BlackElo "2527"]
[TimeControl "180+1"]
[EndTime "9:43:17 PDT"]
[Termination "ama18 won by resignation"]

1. Nf3 {[%clk 0:03:00.9]} 1... Nf6 {[%clk 0:02:58.8]} 2. d4 {[%clk 0:03:00.9]}
2... e6 {[%clk 0:02:58.7]} 3. Bg5 {[%clk 0:03:01.1]} 3... h6 {[%clk 0:02:56.6]}
4. Bh4 {[%clk 0:03:00.5]} 4... b6 {[%clk 0:02:57.2]} 5. e3 {[%clk 0:03:00.7]}
5... Bb7 {[%clk 0:02:57.3]} 6. Bd3 {[%clk 0:03:00.5]} 6... c5 {[%clk 0:02:58]}
7. c3 {[%clk 0:03:00.7]} 7... cxd4 {[%clk 0:02:58.7]} 8. cxd4 {[%clk 0:02:59.8]}
8... Be7 {[%clk 0:02:59.4]} 9. O-O {[%clk 0:02:59.8]} 9... O-O {[%clk
0:02:59.5]} 10. Nc3 {[%clk 0:03:00]} 10... Nc6 {[%clk 0:03:00.1]} 11. Rc1 {[%clk
0:02:59.5]} 11... d5 {[%clk 0:03:00.3]} 12. Qe2 {[%clk 0:02:59.1]} 12... Rc8
{[%clk 0:03:00.9]} 13. a3 {[%clk 0:02:58.8]} 13... Na5 {[%clk 0:03:00.4]} 14.
Ba6 {[%clk 0:02:58.3]} 14... Bxa6 {[%clk 0:02:56.9]} 15. Qxa6 {[%clk 0:02:58]}
15... Nc4 {[%clk 0:02:55.4]} 16. Qxa7 {[%clk 0:02:42.6]} 16... Nxb2 {[%clk
0:02:32]} 17. Nb5 {[%clk 0:02:41.6]} 17... Rxc1 {[%clk 0:02:28.6]} 18. Rxc1
{[%clk 0:02:40.7]} 18... Nc4 {[%clk 0:02:29.5]} 19. Ne5 {[%clk 0:02:27]} 19...
g5 {[%clk 0:01:55]} 20. Nc6 {[%clk 0:02:22.9]} 20... Qe8 {[%clk 0:01:54.5]} 21.
Qxe7 {[%clk 0:00:39.4]} 21... Qxc6 {[%clk 0:01:20.8]} 22. Qxf6 {[%clk
0:00:16.2]} 22... gxh4 {[%clk 0:00:50.8]} 23. a4 {[%clk 0:00:16.2]} 23... Kh7
{[%clk 0:00:48.6]} 24. Qxh4 {[%clk 0:00:14.3]} 24... f6 {[%clk 0:00:47.4]} 25.
Qf4 {[%clk 0:00:14]} 25... Qd7 {[%clk 0:00:41.9]} 26. g4 {[%clk 0:00:12.3]}
26... e5 {[%clk 0:00:42.1]} 27. Qf3 {[%clk 0:00:11.7]} 27... Rg8 {[%clk
0:00:39.2]} 28. h3 {[%clk 0:00:11.7]} 28... Rg6 {[%clk 0:00:37.3]} 29. dxe5
{[%clk 0:00:10.3]} 29... fxe5 {[%clk 0:00:34.5]} 30. Kh2 {[%clk 0:00:09.5]}
30... e4 {[%clk 0:00:34]} 31. Qf4 {[%clk 0:00:09.6]} 31... Qe7 {[%clk
0:00:32.5]} 32. Rd1 {[%clk 0:00:09.2]} 32... Rf6 {[%clk 0:00:31.7]} 33. Qg3
{[%clk 0:00:09.3]} 33... Ne5 {[%clk 0:00:21.3]} 34. Rxd5 {[%clk 0:00:07.7]}
34... Nd3 {[%clk 0:00:17.4]} 35. Rf5 {[%clk 0:00:06.5]} 35... Ne1 {[%clk
0:00:11.9]} 36. Qf4 {[%clk 0:00:06]} 36... Nf3+ {[%clk 0:00:11.3]} 37. Kg3
{[%clk 0:00:06.6]} 37... Rxf5 {[%clk 0:00:09.6]} 38. Qxf5+ {[%clk 0:00:07]}
38... Kg7 {[%clk 0:00:10.3]} 39. Qf4 {[%clk 0:00:07.1]} 39... Qh4+ {[%clk
0:00:07.9]} 40. Kg2 {[%clk 0:00:07.5]} 40... Ne1+ {[%clk 0:00:08.2]} 41. Kf1
{[%clk 0:00:08]} 41... Nd3 {[%clk 0:00:07.5]} 42. Qg3 {[%clk 0:00:07.3]} 42...
Qf6 {[%clk 0:00:06.7]} 43. Nd6 {[%clk 0:00:06.7]} 43... Qa1+ {[%clk 0:00:06.9]}
44. Kg2 {[%clk 0:00:06.7]} 44... Ne1+ {[%clk 0:00:07.3]} 45. Kh2 {[%clk
0:00:06.7]} 45... Nf3+ {[%clk 0:00:07.8]} 46. Qxf3 {[%clk 0:00:06.8]} 46... exf3
{[%clk 0:00:08.1]} 47. Nf5+ {[%clk 0:00:07.1]} 47... Kf6 {[%clk 0:00:08.6]} 48.
Kg3 {[%clk 0:00:08]} 48... Qe5+ {[%clk 0:00:08.5]} 49. Kxf3 {[%clk 0:00:08.7]}
49... Qd5+ {[%clk 0:00:08.4]} 50. Kg3 {[%clk 0:00:09]} 50... Qb3 {[%clk
0:00:07.4]} 51. Nxh6 {[%clk 0:00:09.1]} 51... Qxa4 {[%clk 0:00:07.7]} 52. Nf5
{[%clk 0:00:10]} 52... Qd1 {[%clk 0:00:06.2]} 53. f4 {[%clk 0:00:10.2]} 53... b5
{[%clk 0:00:06.6]} 54. g5+ {[%clk 0:00:10.6]} 54... Kxf5 {[%clk 0:00:06.6]} 0-1

[Event "Early-Titled-Tuesday-Blitz-October-24-2023"]
[Site "Chess.com"]
[Date "2023.10.24"]
[Round "9"]
[White "itsdsyr"]
[Black "RNG2200"]
[Result "1-0"]
[WhiteElo "2286"]
[BlackElo "2153"]
[TimeControl "180+1"]
[EndTime "9:43:25 PDT"]
[Termination "itsdsyr won on time"]

1. e4 {[%clk 0:02:50]} 1... Nf6 {[%clk 0:02:59.5]} 2. e5 {[%clk 0:02:49.6]} 2...
Nd5 {[%clk 0:02:59.6]} 3. d4 {[%clk 0:02:50]} 3... d6 {[%clk 0:02:59.7]} 4. c4
{[%clk 0:02:49.9]} 4... Nb6 {[%clk 0:02:59.6]} 5. exd6 {[%clk 0:02:50.3]} 5...
exd6 {[%clk 0:02:59.8]} 6. h3 {[%clk 0:02:49.7]} 6... Be7 {[%clk 0:03:00.1]} 7.
Nf3 {[%clk 0:02:49.3]} 7... Bf5 {[%clk 0:02:54.5]} 8. Be2 {[%clk 0:02:44.3]}
8... O-O {[%clk 0:02:49.3]} 9. O-O {[%clk 0:02:44.7]} 9... Bf6 {[%clk
0:02:39.1]} 10. Nc3 {[%clk 0:02:39.7]} 10... Re8 {[%clk 0:02:31.8]} 11. Be3
{[%clk 0:02:30.4]} 11... Nc6 {[%clk 0:02:31.5]} 12. b3 {[%clk 0:02:30.5]} 12...
h6 {[%clk 0:02:27.7]} 13. Rc1 {[%clk 0:02:24.8]} 13... Bg6 {[%clk 0:02:15.7]}
14. Re1 {[%clk 0:02:19]} 14... d5 {[%clk 0:02:08.5]} 15. c5 {[%clk 0:02:18.1]}
15... Nc8 {[%clk 0:02:08.8]} 16. a3 {[%clk 0:02:16.5]} 16... N8e7 {[%clk
0:02:05.9]} 17. Qd2 {[%clk 0:02:14.2]} 17... Nf5 {[%clk 0:02:05]} 18. Bb5 {[%clk
0:02:13.8]} 18... a6 {[%clk 0:01:46.5]} 19. Bxc6 {[%clk 0:02:01.1]} 19... bxc6
{[%clk 0:01:47.4]} 20. b4 {[%clk 0:02:01.3]} 20... Qd7 {[%clk 0:01:37.8]} 21.
Bf4 {[%clk 0:02:00.6]} 21... Rxe1+ {[%clk 0:01:35.6]} 22. Rxe1 {[%clk
0:02:01.5]} 22... Rc8 {[%clk 0:01:07.4]} 23. Be5 {[%clk 0:01:45.5]} 23... Nh4
{[%clk 0:00:44.7]} 24. Nh2 {[%clk 0:01:14.4]} 24... Bxe5 {[%clk 0:00:42.9]} 25.
Rxe5 {[%clk 0:01:13.8]} 25... Re8 {[%clk 0:00:40.5]} 26. Ng4 {[%clk 0:01:12.6]}
26... f6 {[%clk 0:00:33.6]} 27. Rxe8+ {[%clk 0:01:10.7]} 27... Qxe8 {[%clk
0:00:33.7]} 28. Qe3 {[%clk 0:01:05.2]} 28... Nf5 {[%clk 0:00:24.6]} 29. Qxe8+
{[%clk 0:00:51.1]} 29... Bxe8 {[%clk 0:00:25.5]} 30. Ne2 {[%clk 0:00:50.2]}
30... Bh5 {[%clk 0:00:21.5]} 31. Kf1 {[%clk 0:00:49.5]} 31... Kf7 {[%clk
0:00:16.8]} 32. Ke1 {[%clk 0:00:49.1]} 32... Ne7 {[%clk 0:00:12.8]} 33. Ne3
{[%clk 0:00:47]} 33... Bxe2 {[%clk 0:00:11.9]} 34. Kxe2 {[%clk 0:00:46.9]} 34...
g5 {[%clk 0:00:10.3]} 35. Kd3 {[%clk 0:00:45]} 35... f5 {[%clk 0:00:10.6]} 36.
a4 {[%clk 0:00:19]} 36... Kf6 {[%clk 0:00:09.7]} 37. Nc2 {[%clk 0:00:18.8]}
37... f4 {[%clk 0:00:09.3]} 38. Na3 {[%clk 0:00:19]} 38... Nf5 {[%clk
0:00:06.2]} 39. b5 {[%clk 0:00:17.3]} 39... cxb5 {[%clk 0:00:05.2]} 40. axb5
{[%clk 0:00:18.2]} 40... axb5 {[%clk 0:00:05.4]} 41. Nxb5 {[%clk 0:00:19.1]}
41... c6 {[%clk 0:00:04.7]} 42. Na7 {[%clk 0:00:16.8]} 42... Ne7 {[%clk
0:00:04.6]} 43. Kc3 {[%clk 0:00:15.6]} 43... Kf5 {[%clk 0:00:04.7]} 44. f3
{[%clk 0:00:16]} 44... h5 {[%clk 0:00:04.8]} 45. Kb4 {[%clk 0:00:16.4]} 45... g4
{[%clk 0:00:05.4]} 46. hxg4+ {[%clk 0:00:17.3]} 46... hxg4 {[%clk 0:00:05.2]}
47. Ka5 {[%clk 0:00:17.7]} 47... Kg5 {[%clk 0:00:03.5]} 48. Kb6 {[%clk
0:00:17.8]} 48... gxf3 {[%clk 0:00:03]} 49. gxf3 {[%clk 0:00:18]} 49... Nf5
{[%clk 0:00:02.8]} 50. Nxc6 {[%clk 0:00:18.5]} 50... Kh4 {[%clk 0:00:02.1]} 51.
Kc7 {[%clk 0:00:10.9]} 51... Kg3 {[%clk 0:00:01.4]} 52. Kd7 {[%clk 0:00:10.2]}
52... Kxf3 {[%clk 0:00:01.1]} 53. Ke6 {[%clk 0:00:10.6]} 1-0

[Event "Early-Titled-Tuesday-Blitz-October-24-2023"]
[Site "Chess.com"]
[Date "2023.10.24"]
[Round "9"]
[White "Elsa167"]
[Black "Aswathchess"]
[Result "1-0"]
[WhiteElo "2873"]
[BlackElo "2667"]
[TimeControl "180+1"]
[EndTime "9:43:32 PDT"]
[Termination "Elsa167 won by resignation"]

1. d4 {[%clk 0:03:00.9]} 1... Nf6 {[%clk 0:02:57.6]} 2. c4 {[%clk 0:03:01.3]}
2... e6 {[%clk 0:02:57.8]} 3. Nf3 {[%clk 0:03:01.4]} 3... d5 {[%clk 0:02:57.9]}
4. Nc3 {[%clk 0:03:02]} 4... c6 {[%clk 0:02:57.1]} 5. Bg5 {[%clk 0:03:02.1]}
5... Nbd7 {[%clk 0:02:56.3]} 6. cxd5 {[%clk 0:03:01.4]} 6... exd5 {[%clk
0:02:52.9]} 7. Qc2 {[%clk 0:03:02]} 7... Bd6 {[%clk 0:02:50.7]} 8. e3 {[%clk
0:03:00.7]} 8... O-O {[%clk 0:02:50.9]} 9. Bd3 {[%clk 0:03:00.6]} 9... h6 {[%clk
0:02:51.1]} 10. Bh4 {[%clk 0:03:00.5]} 10... Re8 {[%clk 0:02:51.3]} 11. O-O
{[%clk 0:02:59.7]} 11... b5 {[%clk 0:02:45.9]} 12. Ne2 {[%clk 0:02:43.8]} 12...
Bb7 {[%clk 0:02:25.8]} 13. Bg3 {[%clk 0:02:43.5]} 13... Nb6 {[%clk 0:02:21.8]}
14. Ne5 {[%clk 0:02:19.4]} 14... Rc8 {[%clk 0:02:20.6]} 15. b3 {[%clk
0:02:07.8]} 15... a6 {[%clk 0:02:10.2]} 16. Bf5 {[%clk 0:02:06.5]} 16... Rc7
{[%clk 0:02:08.6]} 17. Nd3 {[%clk 0:02:03.5]} 17... g6 {[%clk 0:02:03.4]} 18.
Bh3 {[%clk 0:02:02.1]} 18... Bc8 {[%clk 0:01:49.5]} 19. Bxc8 {[%clk 0:02:00]}
19... Nxc8 {[%clk 0:01:47.6]} 20. Rac1 {[%clk 0:01:50.5]} 20... Ne4 {[%clk
0:01:44.9]} 21. Bxd6 {[%clk 0:01:47.7]} 21... Ncxd6 {[%clk 0:01:45]} 22. Ng3
{[%clk 0:01:42.8]} 22... Nxg3 {[%clk 0:01:37.4]} 23. hxg3 {[%clk 0:01:43.7]}
23... a5 {[%clk 0:01:33.1]} 24. Qe2 {[%clk 0:01:36.8]} 24... Qf6 {[%clk
0:01:21.6]} 25. Qf3 {[%clk 0:01:28.9]} 25... Kg7 {[%clk 0:01:13.1]} 26. Rc2
{[%clk 0:01:26.3]} 26... Rec8 {[%clk 0:01:08.1]} 27. Rfc1 {[%clk 0:01:25.9]}
27... Nf5 {[%clk 0:01:03]} 28. Ne5 {[%clk 0:00:56.8]} 28... h5 {[%clk
0:00:56.2]} 29. g4 {[%clk 0:00:52]} 29... hxg4 {[%clk 0:00:54.4]} 30. Nxg4
{[%clk 0:00:52.9]} 30... Qd6 {[%clk 0:00:54.6]} 31. g3 {[%clk 0:00:48.1]} 31...
c5 {[%clk 0:00:52.4]} 32. dxc5 {[%clk 0:00:39.8]} 32... Rxc5 {[%clk 0:00:53.3]}
33. Rxc5 {[%clk 0:00:39.7]} 33... Rxc5 {[%clk 0:00:54.2]} 34. Rd1 {[%clk
0:00:40.1]} 34... Qe6 {[%clk 0:00:41.6]} 35. Qf4 {[%clk 0:00:40]} 35... Rc2
{[%clk 0:00:37.1]} 36. a4 {[%clk 0:00:37]} 36... d4 {[%clk 0:00:32.9]} 37. exd4
{[%clk 0:00:29.5]} 37... f6 {[%clk 0:00:14.1]} 38. d5 {[%clk 0:00:16.4]} 38...
Qe2 {[%clk 0:00:13.6]} 39. Rf1 {[%clk 0:00:15.6]} 39... bxa4 {[%clk 0:00:12.5]}
40. bxa4 {[%clk 0:00:13.7]} 40... Rc4 {[%clk 0:00:12.8]} 41. Qb8 {[%clk
0:00:04.5]} 41... Rxg4 {[%clk 0:00:12.8]} 42. Rc1 {[%clk 0:00:02.9]} 42... Re4
{[%clk 0:00:08]} 43. Rc7+ {[%clk 0:00:02.8]} 43... Re7 {[%clk 0:00:06.9]} 44.
Rxe7+ {[%clk 0:00:03]} 44... Nxe7 {[%clk 0:00:06.9]} 45. d6 {[%clk 0:00:02.3]}
45... Qe1+ {[%clk 0:00:07.4]} 46. Kg2 {[%clk 0:00:02.5]} 46... Qe4+ {[%clk
0:00:08]} 47. Kg1 {[%clk 0:00:03.3]} 47... Nf5 {[%clk 0:00:07.6]} 48. Qc7+
{[%clk 0:00:03.6]} 48... Kh6 {[%clk 0:00:07.4]} 49. d7 {[%clk 0:00:04.5]} 49...
Qe1+ {[%clk 0:00:07.9]} 50. Kg2 {[%clk 0:00:05.2]} 50... Qe4+ {[%clk 0:00:08.6]}
51. Kg1 {[%clk 0:00:05.6]} 51... Qb1+ {[%clk 0:00:08.9]} 52. Kh2 {[%clk
0:00:05.9]} 52... Qf1 {[%clk 0:00:07.5]} 53. Qf4+ {[%clk 0:00:06.1]} 53... g5
{[%clk 0:00:05.4]} 54. Qxf5 {[%clk 0:00:06.6]} 54... Qd1 {[%clk 0:00:05.9]} 55.
Qxf6+ {[%clk 0:00:06.7]} 55... Kh5 {[%clk 0:00:06.5]} 56. d8=Q {[%clk
0:00:07.3]} 1-0

[Event "Early-Titled-Tuesday-Blitz-October-24-2023"]
[Site "Chess.com"]
[Date "2023.10.24"]
[Round "9"]
[White "OK97"]
[Black "MidnightFox"]
[Result "1-0"]
[WhiteElo "2755"]
[BlackElo "2499"]
[TimeControl "180+1"]
[EndTime "9:43:36 PDT"]
[Termination "OK97 won by checkmate"]

1. d4 {[%clk 0:03:00.9]} 1... d5 {[%clk 0:02:30.8]} 2. Nf3 {[%clk 0:02:58.5]}
2... Nf6 {[%clk 0:02:30]} 3. e3 {[%clk 0:02:59]} 3... g6 {[%clk 0:02:29.5]} 4.
c4 {[%clk 0:02:58.1]} 4... Bg7 {[%clk 0:02:28.4]} 5. cxd5 {[%clk 0:02:54.8]}
5... Nxd5 {[%clk 0:02:27.8]} 6. e4 {[%clk 0:02:54.3]} 6... Nb6 {[%clk
0:02:27.6]} 7. Nc3 {[%clk 0:02:52.1]} 7... O-O {[%clk 0:02:27.2]} 8. Be2 {[%clk
0:02:49]} 8... Nc6 {[%clk 0:02:24.5]} 9. Be3 {[%clk 0:02:49]} 9... e5 {[%clk
0:02:24.2]} 10. d5 {[%clk 0:02:47.9]} 10... Ne7 {[%clk 0:02:19.9]} 11. a4 {[%clk
0:02:41]} 11... Bg4 {[%clk 0:02:18.7]} 12. a5 {[%clk 0:02:40]} 12... Nbc8 {[%clk
0:02:17.1]} 13. h3 {[%clk 0:02:35.8]} 13... Bxf3 {[%clk 0:02:16.7]} 14. Bxf3
{[%clk 0:02:36.7]} 14... a6 {[%clk 0:02:15.5]} 15. O-O {[%clk 0:02:35]} 15...
Nd6 {[%clk 0:02:15.9]} 16. Na4 {[%clk 0:02:26.7]} 16... Kh8 {[%clk 0:01:39.4]}
17. Rc1 {[%clk 0:02:19.1]} 17... Ng8 {[%clk 0:01:36]} 18. Qd2 {[%clk 0:02:14.2]}
18... Nf6 {[%clk 0:01:34.7]} 19. Qc2 {[%clk 0:02:08.2]} 19... Rc8 {[%clk
0:01:32.9]} 20. Nc5 {[%clk 0:02:04.4]} 20... h5 {[%clk 0:01:30.2]} 21. b4 {[%clk
0:02:01.1]} 21... Nd7 {[%clk 0:01:25.4]} 22. Rfd1 {[%clk 0:01:58.3]} 22... Nxc5
{[%clk 0:01:15.3]} 23. bxc5 {[%clk 0:01:58.2]} 23... Nb5 {[%clk 0:01:15.9]} 24.
Rb1 {[%clk 0:01:37.6]} 24... Rb8 {[%clk 0:01:06.9]} 25. d6 {[%clk 0:00:48.8]}
25... Na3 {[%clk 0:01:04.5]} 26. Qb3 {[%clk 0:00:44]} 26... Nxb1 {[%clk
0:01:04.2]} 27. Qxb1 {[%clk 0:00:44.9]} 27... cxd6 {[%clk 0:01:01.6]} 28. cxd6
{[%clk 0:00:43.9]} 28... Qd7 {[%clk 0:01:00.8]} 29. Bb6 {[%clk 0:00:40]} 29...
Rbc8 {[%clk 0:01:00.1]} 30. Qd3 {[%clk 0:00:34]} 30... Rc6 {[%clk 0:00:57.7]}
31. Qd5 {[%clk 0:00:24.5]} 31... Re8 {[%clk 0:00:55.5]} 32. g4 {[%clk
0:00:21.5]} 32... h4 {[%clk 0:00:51.8]} 33. Kg2 {[%clk 0:00:19.4]} 33... Re6
{[%clk 0:00:50.8]} 34. Bc7 {[%clk 0:00:12.7]} 34... g5 {[%clk 0:00:47.4]} 35.
Rb1 {[%clk 0:00:10.9]} 35... Bf8 {[%clk 0:00:40.2]} 36. Rxb7 {[%clk 0:00:09.8]}
36... Bxd6 {[%clk 0:00:38.4]} 37. Bxd6 {[%clk 0:00:06.4]} 37... Qxb7 {[%clk
0:00:38.2]} 38. Bxe5+ {[%clk 0:00:06.7]} 38... Kh7 {[%clk 0:00:37.2]} 39. Bd4
{[%clk 0:00:06.3]} 39... f6 {[%clk 0:00:28.2]} 40. Qf5+ {[%clk 0:00:05.4]} 40...
Kg7 {[%clk 0:00:28.3]} 41. e5 {[%clk 0:00:06]} 41... Qf7 {[%clk 0:00:22.9]} 42.
exf6+ {[%clk 0:00:05.6]} 42... Kh6 {[%clk 0:00:20.2]} 43. Bxc6 {[%clk
0:00:05.3]} 43... Rxc6 {[%clk 0:00:21.1]} 44. Qe5 {[%clk 0:00:05]} 44... Re6
{[%clk 0:00:15.5]} 45. Qf5 {[%clk 0:00:04.2]} 45... Rd6 {[%clk 0:00:13.1]} 46.
Be5 {[%clk 0:00:04.2]} 46... Rd5 {[%clk 0:00:11.7]} 47. f4 {[%clk 0:00:04.3]}
47... Rd2+ {[%clk 0:00:10.5]} 48. Kg1 {[%clk 0:00:04.4]} 48... Rd1+ {[%clk
0:00:10]} 49. Kf2 {[%clk 0:00:03.2]} 49... Rd2+ {[%clk 0:00:08.5]} 50. Ke1
{[%clk 0:00:03.1]} 50... Qg6 {[%clk 0:00:02.9]} 51. Qxg6+ {[%clk 0:00:02.9]}
51... Kxg6 {[%clk 0:00:03.8]} 52. Kxd2 {[%clk 0:00:03.1]} 52... gxf4 {[%clk
0:00:04.6]} 53. Bxf4 {[%clk 0:00:03.7]} 53... Kxf6 {[%clk 0:00:05.5]} 54. Ke3
{[%clk 0:00:04.1]} 54... Ke6 {[%clk 0:00:06.1]} 55. Ke4 {[%clk 0:00:05]} 55...
Kf7 {[%clk 0:00:06.4]} 56. Kf5 {[%clk 0:00:05.5]} 56... Kg7 {[%clk 0:00:06.7]}
57. g5 {[%clk 0:00:06.4]} 57... Kf7 {[%clk 0:00:07.6]} 58. g6+ {[%clk
0:00:06.9]} 58... Kg8 {[%clk 0:00:07.9]} 59. Kf6 {[%clk 0:00:06.5]} 59... Kf8
{[%clk 0:00:08.8]} 60. Bc7 {[%clk 0:00:05.7]} 60... Kg8 {[%clk 0:00:09.7]} 61.
Bb6 {[%clk 0:00:06.4]} 61... Kh8 {[%clk 0:00:10]} 62. Bd4 {[%clk 0:00:05.3]}
62... Kg8 {[%clk 0:00:10.9]} 63. Be3 {[%clk 0:00:06.2]} 63... Kh8 {[%clk
0:00:11.8]} 64. Kg5 {[%clk 0:00:06.8]} 64... Kg8 {[%clk 0:00:12.7]} 65. Kxh4
{[%clk 0:00:07.4]} 65... Kh8 {[%clk 0:00:13.6]} 66. Kg5 {[%clk 0:00:08.3]} 66...
Kg8 {[%clk 0:00:14.5]} 67. h4 {[%clk 0:00:09.1]} 67... Kh8 {[%clk 0:00:15.4]}
68. h5 {[%clk 0:00:09.9]} 68... Kg8 {[%clk 0:00:16.3]} 69. Kf6 {[%clk
0:00:10.3]} 69... Kh8 {[%clk 0:00:17.2]} 70. h6 {[%clk 0:00:10.3]} 70... Kg8
{[%clk 0:00:18.1]} 71. Bd4 {[%clk 0:00:10.7]} 71... Kh8 {[%clk 0:00:19]} 72.
Kf7# {[%clk 0:00:11.1]} 1-0

[Event "Early-Titled-Tuesday-Blitz-October-24-2023"]
[Site "Chess.com"]
[Date "2023.10.24"]
[Round "9"]
[White "AsselLesbekova"]
[Black "Eloist"]
[Result "1-0"]
[WhiteElo "2270"]
[BlackElo "2444"]
[TimeControl "180+1"]
[EndTime "9:43:41 PDT"]
[Termination "AsselLesbekova won on time"]

1. e4 {[%clk 0:02:53.3]} 1... e6 {[%clk 0:03:00]} 2. d4 {[%clk 0:02:53]} 2... d5
{[%clk 0:03:00.3]} 3. Bd3 {[%clk 0:02:53]} 3... dxe4 {[%clk 0:03:00]} 4. Bxe4
{[%clk 0:02:53.9]} 4... Nf6 {[%clk 0:03:00.3]} 5. Bf3 {[%clk 0:02:54.2]} 5... c5
{[%clk 0:03:00.8]} 6. Ne2 {[%clk 0:02:54.3]} 6... Nc6 {[%clk 0:03:00.2]} 7. Be3
{[%clk 0:02:51.7]} 7... cxd4 {[%clk 0:03:00.4]} 8. Nxd4 {[%clk 0:02:52.6]} 8...
Ne5 {[%clk 0:03:00.8]} 9. Be2 {[%clk 0:02:53.3]} 9... a6 {[%clk 0:03:00.1]} 10.
c4 {[%clk 0:02:51.9]} 10... Bb4+ {[%clk 0:02:53.6]} 11. Nc3 {[%clk 0:02:50.4]}
11... Bxc3+ {[%clk 0:02:39.4]} 12. bxc3 {[%clk 0:02:51.3]} 12... O-O {[%clk
0:02:37.6]} 13. O-O {[%clk 0:02:48.1]} 13... Qc7 {[%clk 0:02:36.3]} 14. Qb3
{[%clk 0:02:43.9]} 14... Ne4 {[%clk 0:02:25.6]} 15. f4 {[%clk 0:02:38.3]} 15...
Nc5 {[%clk 0:02:11.9]} 16. Qa3 {[%clk 0:02:30.7]} 16... Ned7 {[%clk 0:02:05.4]}
17. Bf3 {[%clk 0:02:07.7]} 17... Rb8 {[%clk 0:01:46.9]} 18. Nb3 {[%clk
0:01:45.4]} 18... b6 {[%clk 0:01:41.7]} 19. Rab1 {[%clk 0:01:37.8]} 19... Bb7
{[%clk 0:01:36.7]} 20. Bxb7 {[%clk 0:01:36.4]} 20... Rxb7 {[%clk 0:01:22]} 21.
Nxc5 {[%clk 0:01:35.4]} 21... bxc5 {[%clk 0:01:16.5]} 22. Qxa6 {[%clk
0:01:32.2]} 22... Ra7 {[%clk 0:01:08.7]} 23. Qb5 {[%clk 0:01:20.6]} 23... Rxa2
{[%clk 0:00:50.8]} 24. Qb7 {[%clk 0:01:14.2]} 24... Qc8 {[%clk 0:00:20.9]} 25.
Rfd1 {[%clk 0:01:04.2]} 25... Nf6 {[%clk 0:00:20.7]} 26. Qxc8 {[%clk 0:00:59.3]}
26... Rxc8 {[%clk 0:00:21.6]} 27. Bxc5 {[%clk 0:00:58.7]} 27... h5 {[%clk
0:00:21.4]} 28. Bd4 {[%clk 0:00:54.3]} 28... Ne4 {[%clk 0:00:19.8]} 29. Ra1
{[%clk 0:00:40.1]} 29... Rxa1 {[%clk 0:00:18.2]} 30. Rxa1 {[%clk 0:00:41]} 30...
Rxc4 {[%clk 0:00:17.8]} 31. Ra3 {[%clk 0:00:38.5]} 31... f6 {[%clk 0:00:16.1]}
32. Kf1 {[%clk 0:00:38]} 32... Kf7 {[%clk 0:00:15.7]} 33. Ke2 {[%clk 0:00:37.9]}
33... Nd6 {[%clk 0:00:14.9]} 34. Kd3 {[%clk 0:00:37.8]} 34... Rc7 {[%clk
0:00:14.7]} 35. Ra6 {[%clk 0:00:36.5]} 35... Nf5 {[%clk 0:00:14]} 36. Ra7 {[%clk
0:00:35.6]} 36... Rxa7 {[%clk 0:00:11.9]} 37. Bxa7 {[%clk 0:00:36.5]} 37... Ke7
{[%clk 0:00:11.9]} 38. Bc5+ {[%clk 0:00:34]} 38... Kd7 {[%clk 0:00:12]} 39. c4
{[%clk 0:00:34.3]} 39... Kc6 {[%clk 0:00:12]} 40. Bf8 {[%clk 0:00:34.5]} 40...
g5 {[%clk 0:00:11.4]} 41. fxg5 {[%clk 0:00:32.2]} 41... fxg5 {[%clk 0:00:12.3]}
42. Ke4 {[%clk 0:00:31.1]} 42... Nh4 {[%clk 0:00:07]} 43. g3 {[%clk 0:00:29.7]}
43... Ng6 {[%clk 0:00:07.1]} 44. Ba3 {[%clk 0:00:23.6]} 44... Kd7 {[%clk
0:00:06.8]} 45. Bc1 {[%clk 0:00:22.9]} 45... g4 {[%clk 0:00:06.6]} 46. Bf4
{[%clk 0:00:21.5]} 46... Kc6 {[%clk 0:00:06.5]} 47. Be3 {[%clk 0:00:21.9]} 47...
Kd6 {[%clk 0:00:06.6]} 48. Bd4 {[%clk 0:00:15.6]} 48... Kc6 {[%clk 0:00:06.8]}
49. Ke3 {[%clk 0:00:14.1]} 49... Kd6 {[%clk 0:00:07.1]} 50. Ke4 {[%clk
0:00:14.5]} 50... Kc6 {[%clk 0:00:07.4]} 51. Be3 {[%clk 0:00:12.2]} 51... Kd6
{[%clk 0:00:07.4]} 52. Bf4+ {[%clk 0:00:12.7]} 52... e5 {[%clk 0:00:07.7]} 53.
Be3 {[%clk 0:00:12.8]} 53... Ke6 {[%clk 0:00:08]} 54. c5 {[%clk 0:00:13.3]}
54... Ne7 {[%clk 0:00:07.9]} 55. Bg5 {[%clk 0:00:12.2]} 55... Nd5 {[%clk
0:00:06.4]} 56. c6 {[%clk 0:00:12.5]} 56... Nc3+ {[%clk 0:00:06.1]} 57. Kd3
{[%clk 0:00:12.9]} 57... Nb5 {[%clk 0:00:06.3]} 58. Kc4 {[%clk 0:00:10.8]} 58...
Nd6+ {[%clk 0:00:05.1]} 59. Kc5 {[%clk 0:00:06.4]} 59... Ne4+ {[%clk 0:00:05.1]}
60. Kb6 {[%clk 0:00:07]} 1-0